[Event "December 12 Early 2023"]
[Site "https://www.chess.com"]
[Date "2023.12.12"]
[Round "2"]
[White "Centron Antuna, Daniel"]
[Black "Fernandez Siles, Luis"]
[Result "0-1"]
[Board "185"]
[TimeControl "180+1"]
[WhiteFideId "22288694"]
[BlackFideId "2209420"]
[WhiteElo "2500"]
[BlackElo "2292"]
[WhiteTeam "ESP"]
[BlackTeam "ESP"]
[WhiteClock "0:00:01"]
[BlackClock "0:00:33"]

1. e4 {[%clk 0:03:00]}  c5 {[%clk 0:02:57]} 2. c3 {[%clk 0:03:01]}  d5 {[%clk 0:02:55]} 3. exd5 {[%clk 0:03:00]}  Nf6 {[%clk 0:02:56]} 4. d4 {[%clk 0:02:57]}  cxd4 {[%clk 0:02:57]} 5. Bb5+ {[%clk 0:02:57]}  Bd7 {[%clk 0:02:55]} 6. Bc4 {[%clk 0:02:58]}  dxc3 {[%clk 0:02:43]} 7. Nxc3 {[%clk 0:02:58]}  g6 {[%clk 0:02:36]} 8. Nf3 {[%clk 0:02:57]}  Bg7 {[%clk 0:02:37]} 9. O-O {[%clk 0:02:57]}  O-O {[%clk 0:02:37]} 10. Ne5 {[%clk 0:02:50]}  Bf5 {[%clk 0:02:29]} 11. Re1 {[%clk 0:02:46]}  Nbd7 {[%clk 0:02:23]} 12. Bf4 {[%clk 0:02:18]}  Nb6 {[%clk 0:02:22]} 13. Bb3 {[%clk 0:02:17]}  a5 {[%clk 0:02:15]} 14. a4 {[%clk 0:02:16]}  Nfd7 {[%clk 0:02:01]} 15. Nb5 {[%clk 0:01:57]}  Nc5 {[%clk 0:01:56]} 16. Nc4 {[%clk 0:01:35]}  Nxd5 {[%clk 0:01:29]} 17. Bg3 {[%clk 0:01:22]}  Nd3 {[%clk 0:01:24]} 18. Re2 {[%clk 0:01:06]}  Rc8 {[%clk 0:01:23]} 19. Ncd6 {[%clk 0:00:54]}  N5f4 {[%clk 0:01:13]} 20. Nxf7 {[%clk 0:00:27]}  Nxe2+ {[%clk 0:01:11]} 21. Qxe2 {[%clk 0:00:28]}  Rxf7 {[%clk 0:01:07]} 22. Bxf7+ {[%clk 0:00:24]}  Kxf7 {[%clk 0:01:08]} 23. Rd1 {[%clk 0:00:24]}  Qb6 {[%clk 0:01:03]} 24. h3 {[%clk 0:00:21]}  Qf6 {[%clk 0:00:59]} 25. Rxd3 {[%clk 0:00:19]}  Bxd3 {[%clk 0:00:59]} 26. Qxd3 {[%clk 0:00:20]}  Rc1+ {[%clk 0:00:58]} 27. Kh2 {[%clk 0:00:20]}  Qxb2 {[%clk 0:00:57]} 28. Qd5+ {[%clk 0:00:19]}  Kf8 {[%clk 0:00:52]} 29. Qxb7 {[%clk 0:00:14]}  Bf6 {[%clk 0:00:50]} 30. Qa8+ {[%clk 0:00:13]}  Kg7 {[%clk 0:00:50]} 31. Qxa5 {[%clk 0:00:11]}  Qa1 {[%clk 0:00:49]} 32. Bf4 {[%clk 0:00:09]}  Be5 {[%clk 0:00:47]} 33. Qb4 {[%clk 0:00:08]}  Rh1+ {[%clk 0:00:42]} 34. Kg3 {[%clk 0:00:07]}  g5 {[%clk 0:00:41]} 35. Qxe7+ {[%clk 0:00:06]}  Kg6 {[%clk 0:00:40]} 36. Bxe5 {[%clk 0:00:06]}  Rxh3+ {[%clk 0:00:32]} 37. Kxh3 {[%clk 0:00:03]}  Qh1+ {[%clk 0:00:33]} 38. Kg3 {[%clk 0:00:03]}  Qh4+ {[%clk 0:00:32]} 39. Kf3 {[%clk 0:00:04]}  g4+ {[%clk 0:00:32]} 40. Ke2 {[%clk 0:00:04]}  Qxe7 {[%clk 0:00:32]} 41. f4 {[%clk 0:00:02]}  gxf3+ {[%clk 0:00:32]} 42. Kxf3 {[%clk 0:00:02]}  Qxe5 {[%clk 0:00:32]} 43. g3 {[%clk 0:00:03]}  Qa1 {[%clk 0:00:31]} 44. Nd6 {[%clk 0:00:03]}  Qa3+ {[%clk 0:00:31]} 45. Kf4 {[%clk 0:00:02]}  Qxd6+ {[%clk 0:00:32]} 46. Ke4 {[%clk 0:00:03]}  Qa6 {[%clk 0:00:33]} 47. a5 {[%clk 0:00:01]}  Qxa5 {[%clk 0:00:33]} 0-1

[Event "December 12 Early 2023"]
[Site "https://www.chess.com"]
[Date "2023.12.12"]
[Round "2"]
[White "Rodriguez Santiago, Jaime"]
[Black "Spichkin, Alexander"]
[Result "0-1"]
[Board "186"]
[TimeControl "180+1"]
[WhiteFideId "3100898"]
[BlackFideId "4144074"]
[WhiteElo "2278"]
[BlackElo "2500"]
[WhiteTeam "PUR"]
[BlackTeam "RUS"]
[WhiteClock "0:00:03"]
[BlackClock "0:01:41"]

1. d4 {[%clk 0:03:00]}  e6 {[%clk 0:02:59]} 2. c4 {[%clk 0:03:00]}  f5 {[%clk 0:03:00]} 3. g3 {[%clk 0:02:59]}  Nf6 {[%clk 0:03:00]} 4. Bg2 {[%clk 0:02:58]}  Be7 {[%clk 0:03:01]} 5. Nf3 {[%clk 0:02:58]}  d6 {[%clk 0:03:01]} 6. Nc3 {[%clk 0:02:58]}  O-O {[%clk 0:03:02]} 7. O-O {[%clk 0:02:58]}  a5 {[%clk 0:03:02]} 8. Qc2 {[%clk 0:02:56]}  Nc6 {[%clk 0:02:59]} 9. a3 {[%clk 0:02:56]}  e5 {[%clk 0:02:58]} 10. dxe5 {[%clk 0:02:45]}  dxe5 {[%clk 0:02:58]} 11. e4 {[%clk 0:02:39]}  Qe8 {[%clk 0:02:55]} 12. exf5 {[%clk 0:02:17]}  Qh5 {[%clk 0:02:55]} 13. Nh4 {[%clk 0:01:44]}  Nd4 {[%clk 0:02:53]} 14. Qd1 {[%clk 0:01:35]}  Qxd1 {[%clk 0:02:52]} 15. Rxd1 {[%clk 0:01:33]}  c6 {[%clk 0:02:53]} 16. Be3 {[%clk 0:01:04]}  Nxf5 {[%clk 0:02:52]} 17. Nxf5 {[%clk 0:01:03]}  Bxf5 {[%clk 0:02:53]} 18. Rd2 {[%clk 0:00:48]}  Be6 {[%clk 0:02:47]} 19. c5 {[%clk 0:00:36]}  Bb3 {[%clk 0:02:44]} 20. Ne4 {[%clk 0:00:33]}  Nd5 {[%clk 0:02:32]} 21. Nd6 {[%clk 0:00:30]}  Nxe3 {[%clk 0:02:32]} 22. fxe3 {[%clk 0:00:30]}  Rfd8 {[%clk 0:02:26]} 23. Rf1 {[%clk 0:00:19]}  Bg5 {[%clk 0:02:22]} 24. Kf2 {[%clk 0:00:05]}  a4 {[%clk 0:02:21]} 25. Ne4 {[%clk 0:00:03]}  Rf8+ {[%clk 0:02:08]} 26. Ke1 {[%clk 0:00:03]}  Bxe3 {[%clk 0:02:07]} 27. Rxf8+ {[%clk 0:00:03]}  Rxf8 {[%clk 0:02:06]} 28. Rd7 {[%clk 0:00:04]}  Rb8 {[%clk 0:02:00]} 29. Nd6 {[%clk 0:00:04]}  Bxc5 {[%clk 0:02:00]} 30. Nxb7 {[%clk 0:00:03]}  Bb6 {[%clk 0:01:58]} 31. Bxc6 {[%clk 0:00:03]}  e4 {[%clk 0:01:56]} 32. Nd6 {[%clk 0:00:03]}  Ba5+ {[%clk 0:01:54]} 33. Ke2 {[%clk 0:00:03]}  Be6 {[%clk 0:01:52]} 34. Re7 {[%clk 0:00:03]}  Bg4+ {[%clk 0:01:51]} 35. Ke3 {[%clk 0:00:02]}  h5 {[%clk 0:01:49]} 36. Nxe4 {[%clk 0:00:03]}  Rxb2 {[%clk 0:01:47]} 37. Bd5+ {[%clk 0:00:02]}  Kh7 {[%clk 0:01:47]} 38. Ng5+ {[%clk 0:00:01]}  Kg6 {[%clk 0:01:48]} 39. Nf7 {[%clk 0:00:02]}  Re2+ {[%clk 0:01:44]} 40. Kf4 {[%clk 0:00:02]}  Rxe7 {[%clk 0:01:44]} 41. Ng5 {[%clk 0:00:03]}  Bc7# {[%clk 0:01:41]} 0-1

[Event "December 12 Early 2023"]
[Site "https://www.chess.com"]
[Date "2023.12.12"]
[Round "2"]
[White "Kruckenhauser, Arthur"]
[Black "Minina, Veronika"]
[Result "1-0"]
[Board "189"]
[TimeControl "180+1"]
[WhiteFideId "1642812"]
[BlackFideId "4174780"]
[WhiteElo "2497"]
[BlackElo "2249"]
[WhiteTeam "AUT"]
[BlackTeam "RUS"]
[WhiteClock "0:00:57"]
[BlackClock "0:00:00"]

1. d4 {[%clk 0:03:00]}  Nf6 {[%clk 0:02:58]} 2. Bf4 {[%clk 0:02:58]}  g6 {[%clk 0:02:58]} 3. Nc3 {[%clk 0:02:58]}  Bg7 {[%clk 0:02:58]} 4. e4 {[%clk 0:02:58]}  d6 {[%clk 0:02:57]} 5. Nf3 {[%clk 0:02:55]}  O-O {[%clk 0:02:57]} 6. Qd2 {[%clk 0:02:55]}  c5 {[%clk 0:02:57]} 7. Bh6 {[%clk 0:02:50]}  cxd4 {[%clk 0:02:54]} 8. Nxd4 {[%clk 0:02:51]}  Nc6 {[%clk 0:02:52]} 9. Bxg7 {[%clk 0:02:46]}  Kxg7 {[%clk 0:02:50]} 10. O-O-O {[%clk 0:02:46]}  Qa5 {[%clk 0:02:45]} 11. Kb1 {[%clk 0:02:43]}  Be6 {[%clk 0:02:08]} 12. f3 {[%clk 0:02:37]}  Rfc8 {[%clk 0:02:03]} 13. g4 {[%clk 0:02:35]}  a6 {[%clk 0:01:49]} 14. h4 {[%clk 0:02:32]}  b5 {[%clk 0:01:47]} 15. Nxc6 {[%clk 0:02:26]}  Rxc6 {[%clk 0:01:46]} 16. Nd5 {[%clk 0:02:27]}  Qxd2 {[%clk 0:01:39]} 17. Rxd2 {[%clk 0:02:27]}  Bxd5 {[%clk 0:01:37]} 18. exd5 {[%clk 0:02:27]}  Rc5 {[%clk 0:01:37]} 19. Bg2 {[%clk 0:02:24]}  Rac8 {[%clk 0:01:35]} 20. Rhd1 {[%clk 0:02:23]}  h5 {[%clk 0:01:31]} 21. g5 {[%clk 0:02:22]}  Nd7 {[%clk 0:01:31]} 22. Bh3 {[%clk 0:02:13]}  R8c7 {[%clk 0:01:31]} 23. b3 {[%clk 0:02:09]}  Ne5 {[%clk 0:01:29]} 24. f4 {[%clk 0:02:09]}  Nf3 {[%clk 0:01:27]} 25. Rf2 {[%clk 0:02:00]}  Nxh4 {[%clk 0:01:06]} 26. Rh1 {[%clk 0:01:58]}  Rc3 {[%clk 0:01:05]} 27. f5 {[%clk 0:01:53]}  Nf3 {[%clk 0:00:53]} 28. f6+ {[%clk 0:01:44]}  exf6 {[%clk 0:00:50]} 29. gxf6+ {[%clk 0:01:45]}  Kh6 {[%clk 0:00:41]} 30. Bg2 {[%clk 0:01:45]}  Ne5 {[%clk 0:00:25]} 31. Be4 {[%clk 0:01:45]}  Ng4 {[%clk 0:00:21]} 32. Rg2 {[%clk 0:01:44]}  Nxf6 {[%clk 0:00:20]} 33. Bd3 {[%clk 0:01:44]}  Nxd5 {[%clk 0:00:19]} 34. Rhg1 {[%clk 0:01:42]}  Nf4 {[%clk 0:00:16]} 35. Rg3 {[%clk 0:01:42]}  Nxd3 {[%clk 0:00:16]} 36. cxd3 {[%clk 0:01:43]}  h4 {[%clk 0:00:13]} 37. Rg4 {[%clk 0:01:43]}  Rxd3 {[%clk 0:00:10]} 38. Rxh4+ {[%clk 0:01:43]}  Kg7 {[%clk 0:00:10]} 39. Rh2 {[%clk 0:01:43]}  Rf3 {[%clk 0:00:10]} 40. Rd2 {[%clk 0:01:43]}  Rc6 {[%clk 0:00:09]} 41. Re1 {[%clk 0:01:41]}  g5 {[%clk 0:00:09]} 42. Rd5 {[%clk 0:01:41]}  Kg6 {[%clk 0:00:08]} 43. Rg1 {[%clk 0:01:41]}  f6 {[%clk 0:00:08]} 44. Re1 {[%clk 0:01:40]}  Rf2 {[%clk 0:00:05]} 45. Re8 {[%clk 0:01:41]}  Kh5 {[%clk 0:00:02]} 46. Rd4 {[%clk 0:01:40]}  g4 {[%clk 0:00:02]} 47. Rh8+ {[%clk 0:01:39]}  Kg5 {[%clk 0:00:02]} 48. Rg8+ {[%clk 0:01:40]}  Kf5 {[%clk 0:00:02]} 49. Rgxg4 {[%clk 0:01:37]}  Rc5 {[%clk 0:00:02]} 50. Rh4 {[%clk 0:01:36]}  Re5 {[%clk 0:00:03]} 51. Rh1 {[%clk 0:01:34]}  Ree2 {[%clk 0:00:04]} 52. Rxd6 {[%clk 0:01:31]}  Ke5 {[%clk 0:00:03]} 53. Rxa6 {[%clk 0:01:28]}  Rb2+ {[%clk 0:00:04]} 54. Ka1 {[%clk 0:01:28]}  Rbe2 {[%clk 0:00:05]} 55. a4 {[%clk 0:01:27]}  Kd4 {[%clk 0:00:06]} 56. axb5 {[%clk 0:01:26]}  Kc3 {[%clk 0:00:06]} 57. Rh3+ {[%clk 0:01:24]}  Kc2 {[%clk 0:00:07]} 58. Rh1 {[%clk 0:01:24]}  Rf3 {[%clk 0:00:07]} 59. Ra2+ {[%clk 0:01:23]}  Kd3 {[%clk 0:00:07]} 60. Rxe2 {[%clk 0:00:56]}  Kxe2 {[%clk 0:00:07]} 61. b6 {[%clk 0:00:57]}  Rxb3 {[%clk 0:00:06]} 62. Rb1 {[%clk 0:00:57]}  Ra3+ {[%clk 0:00:05]} 63. Kb2 {[%clk 0:00:57]}  Ra8 {[%clk 0:00:05]} 64. Kc3 {[%clk 0:00:57]}  Rb8 {[%clk 0:00:05]} 65. Kd4 {[%clk 0:00:57]}  Kf3 {[%clk 0:00:02]} 66. Rf1+ {[%clk 0:00:58]}  Kg4 {[%clk 0:00:03]} 67. Rxf6 {[%clk 0:00:58]}  Kg5 {[%clk 0:00:03]} 68. Rd6 {[%clk 0:00:57]}  Kf5 {[%clk 0:00:02]} 69. Kc5 {[%clk 0:00:57]}  Ke5 {[%clk 0:00:02]} 70. Rd1 {[%clk 0:00:57]}  Ke6 {[%clk 0:00:00]} 71. Kc6 {[%clk 0:00:57]} 1-0

[Event "December 12 Early 2023"]
[Site "https://www.chess.com"]
[Date "2023.12.12"]
[Round "2"]
[White "Player, Edmund C"]
[Black "Yaniuk, Volodymyr"]
[Result "0-1"]
[Board "190"]
[TimeControl "180+1"]
[WhiteFideId "406520"]
[BlackFideId "14133083"]
[WhiteElo "2247"]
[BlackElo "2493"]
[WhiteTeam "ENG"]
[BlackTeam "UKR"]
[WhiteClock "0:00:03"]
[BlackClock "0:00:52"]

1. Nc3 {[%clk 0:03:00]}  d5 {[%clk 0:02:59]} 2. e4 {[%clk 0:03:00]}  d4 {[%clk 0:02:59]} 3. Nce2 {[%clk 0:03:00]}  Nc6 {[%clk 0:02:58]} 4. Ng3 {[%clk 0:02:59]}  g6 {[%clk 0:02:58]} 5. Bc4 {[%clk 0:02:57]}  Bg7 {[%clk 0:02:58]} 6. d3 {[%clk 0:02:52]}  Nf6 {[%clk 0:02:58]} 7. a3 {[%clk 0:02:40]}  O-O {[%clk 0:02:57]} 8. f4 {[%clk 0:02:40]}  Bg4 {[%clk 0:02:51]} 9. Nf3 {[%clk 0:02:39]}  Nh5 {[%clk 0:02:47]} 10. Nxh5 {[%clk 0:02:33]}  Bxh5 {[%clk 0:02:48]} 11. O-O {[%clk 0:02:32]}  e5 {[%clk 0:02:47]} 12. Qe1 {[%clk 0:02:22]}  exf4 {[%clk 0:02:41]} 13. Bxf4 {[%clk 0:02:21]}  Bxf3 {[%clk 0:02:39]} 14. Rxf3 {[%clk 0:02:20]}  Ne5 {[%clk 0:02:39]} 15. Bxe5 {[%clk 0:02:19]}  Bxe5 {[%clk 0:02:40]} 16. Qb4 {[%clk 0:01:59]}  Kg7 {[%clk 0:02:30]} 17. Qxb7 {[%clk 0:01:50]}  Rb8 {[%clk 0:02:30]} 18. Qxa7 {[%clk 0:01:50]}  Rxb2 {[%clk 0:02:29]} 19. Bb3 {[%clk 0:01:48]}  Qh4 {[%clk 0:02:11]} 20. Rh3 {[%clk 0:01:37]}  Qg5 {[%clk 0:02:08]} 21. Rf1 {[%clk 0:01:35]}  h5 {[%clk 0:01:56]} 22. Rhf3 {[%clk 0:01:20]}  Kh6 {[%clk 0:01:42]} 23. Qa4 {[%clk 0:00:48]}  Bd6 {[%clk 0:01:31]} 24. Kh1 {[%clk 0:00:40]}  Qe5 {[%clk 0:01:19]} 25. Rg3 {[%clk 0:00:27]}  f5 {[%clk 0:01:14]} 26. Kg1 {[%clk 0:00:01]}  fxe4 {[%clk 0:00:59]} 27. Rxf8 {[%clk 0:00:02]}  Bxf8 {[%clk 0:00:56]} 28. Qd7 {[%clk 0:00:02]}  Rb1+ {[%clk 0:00:54]} 29. Kf2 {[%clk 0:00:02]}  Qf4+ {[%clk 0:00:52]} 30. Ke2 {[%clk 0:00:02]}  Qf1+ {[%clk 0:00:51]} 31. Kd2 {[%clk 0:00:03]}  Qe1# {[%clk 0:00:52]} 0-1

[Event "December 12 Early 2023"]
[Site "https://www.chess.com"]
[Date "2023.12.12"]
[Round "2"]
[White "Reprintsev, Alexander"]
[Black "Ratnesan, Ranesh"]
[Result "1-0"]
[Board "191"]
[TimeControl "180+1"]
[WhiteFideId "14100541"]
[BlackFideId "439339"]
[WhiteElo "2493"]
[BlackElo "2238"]
[WhiteTeam "UKR"]
[BlackTeam "ENG"]
[WhiteClock "0:01:43"]
[BlackClock "0:00:27"]

1. e4 {[%clk 0:02:58]}  c5 {[%clk 0:02:34]} 2. b3 {[%clk 0:02:57]}  Nc6 {[%clk 0:02:31]} 3. Bb2 {[%clk 0:02:57]}  e5 {[%clk 0:02:31]} 4. f4 {[%clk 0:02:55]}  d6 {[%clk 0:02:31]} 5. Qf3 {[%clk 0:02:54]}  Nd4 {[%clk 0:02:25]} 6. Qd3 {[%clk 0:02:53]}  g6 {[%clk 0:02:21]} 7. Nf3 {[%clk 0:02:52]}  Bg7 {[%clk 0:02:18]} 8. Nxd4 {[%clk 0:02:52]}  cxd4 {[%clk 0:02:19]} 9. c3 {[%clk 0:02:52]}  dxc3 {[%clk 0:02:19]} 10. Nxc3 {[%clk 0:02:52]}  Ne7 {[%clk 0:02:16]} 11. Qb5+ {[%clk 0:02:50]}  Qd7 {[%clk 0:02:13]} 12. Rc1 {[%clk 0:02:46]}  O-O {[%clk 0:02:11]} 13. Qxd7 {[%clk 0:02:33]}  Bxd7 {[%clk 0:02:12]} 14. Bb5 {[%clk 0:02:33]}  Bc6 {[%clk 0:02:01]} 15. Bxc6 {[%clk 0:02:31]}  bxc6 {[%clk 0:02:02]} 16. fxe5 {[%clk 0:02:29]}  Bxe5 {[%clk 0:02:02]} 17. Na4 {[%clk 0:02:27]}  Bxb2 {[%clk 0:01:59]} 18. Nxb2 {[%clk 0:02:27]}  d5 {[%clk 0:01:54]} 19. e5 {[%clk 0:02:20]}  Rfe8 {[%clk 0:01:45]} 20. Nd3 {[%clk 0:02:16]}  a5 {[%clk 0:01:29]} 21. Kf2 {[%clk 0:02:12]}  a4 {[%clk 0:01:28]} 22. b4 {[%clk 0:02:11]}  a3 {[%clk 0:01:18]} 23. Rc3 {[%clk 0:02:11]}  Reb8 {[%clk 0:01:16]} 24. Rb1 {[%clk 0:02:08]}  Ra6 {[%clk 0:01:06]} 25. Rbb3 {[%clk 0:02:07]}  Rba8 {[%clk 0:01:05]} 26. Nc5 {[%clk 0:01:55]}  R6a7 {[%clk 0:01:02]} 27. g4 {[%clk 0:01:55]}  h5 {[%clk 0:01:01]} 28. gxh5 {[%clk 0:01:53]}  gxh5 {[%clk 0:01:01]} 29. Rh3 {[%clk 0:01:53]}  Ng6 {[%clk 0:00:56]} 30. Rxh5 {[%clk 0:01:50]}  Re8 {[%clk 0:00:45]} 31. d4 {[%clk 0:01:49]}  f6 {[%clk 0:00:28]} 32. Rg3 {[%clk 0:01:44]}  Kf7 {[%clk 0:00:27]} 33. Rh7+ {[%clk 0:01:43]} 1-0

[Event "December 12 Early 2023"]
[Site "https://www.chess.com"]
[Date "2023.12.12"]
[Round "2"]
[White "Ljukin, Sergei"]
[Black "Zaichenko, Daria"]
[Result "1/2-1/2"]
[Board "193"]
[TimeControl "180+1"]
[WhiteFideId "14102200"]
[BlackFideId "4197453"]
[WhiteElo "2490"]
[BlackElo "2233"]
[WhiteTeam "UKR"]
[BlackTeam "RUS"]
[WhiteClock "0:00:09"]
[BlackClock "0:00:08"]

1. e4 {[%clk 0:02:57]}  c5 {[%clk 0:02:59]} 2. Nf3 {[%clk 0:02:57]}  Nc6 {[%clk 0:02:58]} 3. d4 {[%clk 0:02:58]}  cxd4 {[%clk 0:02:58]} 4. Nxd4 {[%clk 0:02:58]}  Nf6 {[%clk 0:02:59]} 5. Nc3 {[%clk 0:02:59]}  d6 {[%clk 0:02:59]} 6. Bc4 {[%clk 0:02:58]}  e5 {[%clk 0:02:56]} 7. Nxc6 {[%clk 0:02:56]}  bxc6 {[%clk 0:02:55]} 8. Bg5 {[%clk 0:02:56]}  Be7 {[%clk 0:02:54]} 9. Qd2 {[%clk 0:02:57]}  h6 {[%clk 0:02:37]} 10. Bxf6 {[%clk 0:02:52]}  Bxf6 {[%clk 0:02:34]} 11. O-O {[%clk 0:02:51]}  Bg5 {[%clk 0:02:28]} 12. Qd3 {[%clk 0:02:50]}  O-O {[%clk 0:02:28]} 13. Rad1 {[%clk 0:02:49]}  Be7 {[%clk 0:02:27]} 14. f4 {[%clk 0:02:49]}  Bg4 {[%clk 0:02:24]} 15. Rde1 {[%clk 0:02:42]}  Qb6+ {[%clk 0:02:17]} 16. Kh1 {[%clk 0:02:41]}  exf4 {[%clk 0:02:08]} 17. Rxf4 {[%clk 0:02:41]}  Be6 {[%clk 0:02:06]} 18. Bb3 {[%clk 0:02:35]}  Bg5 {[%clk 0:01:58]} 19. Rf3 {[%clk 0:02:29]}  Rad8 {[%clk 0:01:55]} 20. Ref1 {[%clk 0:02:22]}  Bxb3 {[%clk 0:01:29]} 21. axb3 {[%clk 0:02:22]}  Qc5 {[%clk 0:01:22]} 22. Rf5 {[%clk 0:02:16]}  Qe3 {[%clk 0:01:20]} 23. Qxe3 {[%clk 0:02:05]}  Bxe3 {[%clk 0:01:20]} 24. Rd1 {[%clk 0:02:06]}  f6 {[%clk 0:01:14]} 25. Rf3 {[%clk 0:02:05]}  Bb6 {[%clk 0:01:10]} 26. Rfd3 {[%clk 0:02:05]}  Bc7 {[%clk 0:01:09]} 27. Kg1 {[%clk 0:01:42]}  Kf7 {[%clk 0:01:09]} 28. Kf2 {[%clk 0:01:42]}  Ke6 {[%clk 0:01:09]} 29. Ne2 {[%clk 0:01:24]}  Ke5 {[%clk 0:01:07]} 30. Kf3 {[%clk 0:01:22]}  f5 {[%clk 0:01:01]} 31. exf5 {[%clk 0:01:19]}  Rxf5+ {[%clk 0:01:00]} 32. Ke3 {[%clk 0:01:00]}  Bb6+ {[%clk 0:00:59]} 33. Kd2 {[%clk 0:01:00]}  Rf2 {[%clk 0:00:58]} 34. Rg3 {[%clk 0:00:58]}  g5 {[%clk 0:00:53]} 35. b4 {[%clk 0:00:34]}  Kf5 {[%clk 0:00:37]} 36. Rf3+ {[%clk 0:00:18]}  Rxf3 {[%clk 0:00:33]} 37. gxf3 {[%clk 0:00:19]}  Re8 {[%clk 0:00:33]} 38. c4 {[%clk 0:00:15]}  Be3+ {[%clk 0:00:29]} 39. Kd3 {[%clk 0:00:12]}  Bf4 {[%clk 0:00:27]} 40. Nd4+ {[%clk 0:00:12]}  Kf6 {[%clk 0:00:28]} 41. Nxc6 {[%clk 0:00:12]}  Re3+ {[%clk 0:00:28]} 42. Kd4 {[%clk 0:00:12]}  Rxf3 {[%clk 0:00:28]} 43. Nxa7 {[%clk 0:00:11]}  Rb3 {[%clk 0:00:27]} 44. b5 {[%clk 0:00:10]}  Be3+ {[%clk 0:00:23]} 45. Kd5 {[%clk 0:00:07]}  Bxa7 {[%clk 0:00:22]} 46. Kxd6 {[%clk 0:00:07]}  Rxb2 {[%clk 0:00:19]} 47. Kc6 {[%clk 0:00:07]}  Be3 {[%clk 0:00:14]} 48. Rd6+ {[%clk 0:00:07]}  Kg7 {[%clk 0:00:13]} 49. c5 {[%clk 0:00:06]}  Rc2 {[%clk 0:00:13]} 50. Rd5 {[%clk 0:00:06]}  Rxh2 {[%clk 0:00:11]} 51. b6 {[%clk 0:00:06]}  Bf4 {[%clk 0:00:11]} 52. b7 {[%clk 0:00:04]}  Rb2 {[%clk 0:00:09]} 53. Rd7+ {[%clk 0:00:02]}  Kg6 {[%clk 0:00:09]} 54. Kd5 {[%clk 0:00:03]}  g4 {[%clk 0:00:08]} 55. Ke4 {[%clk 0:00:02]}  Bb8 {[%clk 0:00:07]} 56. c6 {[%clk 0:00:02]}  g3 {[%clk 0:00:05]} 57. c7 {[%clk 0:00:02]}  Bxc7 {[%clk 0:00:05]} 58. Rxc7 {[%clk 0:00:02]}  g2 {[%clk 0:00:06]} 59. Rc1 {[%clk 0:00:02]}  Rxb7 {[%clk 0:00:04]} 60. Rg1 {[%clk 0:00:02]}  Rb2 {[%clk 0:00:04]} 61. Kf3 {[%clk 0:00:03]}  Kg5 {[%clk 0:00:04]} 62. Rxg2+ {[%clk 0:00:03]}  Rxg2 {[%clk 0:00:04]} 63. Kxg2 {[%clk 0:00:04]}  Kg4 {[%clk 0:00:04]} 64. Kh1 {[%clk 0:00:05]}  Kh3 {[%clk 0:00:05]} 65. Kg1 {[%clk 0:00:05]}  h5 {[%clk 0:00:05]} 66. Kh1 {[%clk 0:00:06]}  h4 {[%clk 0:00:06]} 67. Kg1 {[%clk 0:00:07]}  Kg3 {[%clk 0:00:07]} 68. Kh1 {[%clk 0:00:08]}  h3 {[%clk 0:00:07]} 69. Kg1 {[%clk 0:00:08]}  h2+ {[%clk 0:00:08]} 70. Kh1 {[%clk 0:00:09]}  Kh3 {[%clk 0:00:08]} 1/2-1/2

[Event "December 12 Early 2023"]
[Site "https://www.chess.com"]
[Date "2023.12.12"]
[Round "2"]
[White "De Souza, Cristiano Gomes"]
[Black "Musalov, Ruslan"]
[Result "0-1"]
[Board "194"]
[TimeControl "180+1"]
[WhiteFideId "2151758"]
[BlackFideId "4141490"]
[WhiteElo "2233"]
[BlackElo "2487"]
[WhiteTeam "BRA"]
[BlackTeam "RUS"]
[WhiteClock "0:00:57"]
[BlackClock "0:00:07"]

1. d4 {[%clk 0:03:00]}  Nf6 {[%clk 0:03:00]} 2. c4 {[%clk 0:02:59]}  g6 {[%clk 0:03:00]} 3. Nf3 {[%clk 0:02:58]}  Bg7 {[%clk 0:03:01]} 4. Nc3 {[%clk 0:02:59]}  O-O {[%clk 0:03:01]} 5. e4 {[%clk 0:02:58]}  d6 {[%clk 0:03:02]} 6. Be2 {[%clk 0:02:58]}  e5 {[%clk 0:03:02]} 7. O-O {[%clk 0:02:58]}  Nc6 {[%clk 0:03:03]} 8. d5 {[%clk 0:02:58]}  Ne7 {[%clk 0:03:04]} 9. Ne1 {[%clk 0:02:58]}  Nd7 {[%clk 0:03:04]} 10. Be3 {[%clk 0:02:57]}  f5 {[%clk 0:03:05]} 11. f3 {[%clk 0:02:58]}  f4 {[%clk 0:03:05]} 12. Bf2 {[%clk 0:02:58]}  g5 {[%clk 0:03:06]} 13. Nb5 {[%clk 0:02:58]}  b6 {[%clk 0:03:04]} 14. b4 {[%clk 0:02:53]}  h5 {[%clk 0:03:02]} 15. Nd3 {[%clk 0:02:50]}  Ng6 {[%clk 0:02:45]} 16. c5 {[%clk 0:02:49]}  Nf6 {[%clk 0:02:45]} 17. Rc1 {[%clk 0:02:48]}  Rf7 {[%clk 0:02:44]} 18. Qc2 {[%clk 0:02:36]}  a6 {[%clk 0:02:35]} 19. Na3 {[%clk 0:02:31]}  b5 {[%clk 0:02:32]} 20. cxd6 {[%clk 0:02:25]}  cxd6 {[%clk 0:02:32]} 21. Qd2 {[%clk 0:02:14]}  g4 {[%clk 0:02:28]} 22. Rc2 {[%clk 0:02:12]}  g3 {[%clk 0:02:22]} 23. hxg3 {[%clk 0:02:10]}  fxg3 {[%clk 0:02:23]} 24. Bxg3 {[%clk 0:02:10]}  h4 {[%clk 0:02:24]} 25. Bf2 {[%clk 0:02:09]}  Nh5 {[%clk 0:02:23]} 26. Kh2 {[%clk 0:02:07]}  Nhf4 {[%clk 0:02:23]} 27. Rfc1 {[%clk 0:02:03]}  Bd7 {[%clk 0:02:04]} 28. Bf1 {[%clk 0:02:01]}  Bh6 {[%clk 0:01:53]} 29. Be3 {[%clk 0:01:59]}  Qg5 {[%clk 0:01:42]} 30. Nxf4 {[%clk 0:01:57]}  Nxf4 {[%clk 0:01:38]} 31. Qf2 {[%clk 0:01:52]}  Rg7 {[%clk 0:01:07]} 32. Nb1 {[%clk 0:01:50]}  Qg3+ {[%clk 0:00:25]} 33. Kh1 {[%clk 0:01:29]}  Bg5 {[%clk 0:00:17]} 34. Rc7 {[%clk 0:01:23]}  Rf8 {[%clk 0:00:08]} 35. Ra7 {[%clk 0:01:21]}  Rff7 {[%clk 0:00:08]} 36. Rcc7 {[%clk 0:01:19]}  Rh7 {[%clk 0:00:08]} 37. Nc3 {[%clk 0:01:16]}  Qxf2 {[%clk 0:00:07]} 38. Bxf2 {[%clk 0:01:15]}  h3 {[%clk 0:00:07]} 39. g3 {[%clk 0:01:12]}  Ng2 {[%clk 0:00:05]} 40. Bxg2 {[%clk 0:01:10]}  hxg2+ {[%clk 0:00:06]} 41. Kxg2 {[%clk 0:01:10]}  Bh3+ {[%clk 0:00:06]} 42. Kg1 {[%clk 0:01:07]}  Rxc7 {[%clk 0:00:07]} 43. Rxc7 {[%clk 0:01:04]}  Rxc7 {[%clk 0:00:08]} 44. Be1 {[%clk 0:01:03]}  Be3+ {[%clk 0:00:07]} 45. Kh2 {[%clk 0:01:02]}  Bd7 {[%clk 0:00:06]} 46. Kg2 {[%clk 0:01:00]}  Bd4 {[%clk 0:00:07]} 47. Ne2 {[%clk 0:00:57]}  Rc2 {[%clk 0:00:07]} 48. Kf1 {[%clk 0:00:57]}  Bh3# {[%clk 0:00:07]} 0-1